bitfinex/quotes_BTCUSD_20260215
["timestamp","ask_amount","ask_price","bid_price","bid_amount"]
[1771134567745,0.07109099,70333.0,70326.0,0.07109656]
[1771134568324,0.07109178,70332.0,70326.0,0.07109656]
[1771134568943,0.07109017,70334.0,70326.0,0.07109656]
[1771134569132,0.07109017,70334.0,70327.0,0.07109644]
[1771134569330,0.07109115,70333.0,70327.0,0.07109644]
[1771134569951,0.07109139,70332.0,70326.0,0.07109656]
[1771134570291,0.0710906,70333.0,70326.0,0.07109656]
[1771134570451,0.0710906,70333.0,70327.0,0.0710962]
[1771134570860,0.0230898,70339.0,70322.0,0.0711015]
[1771134571061,0.07108669,70337.0,70330.0,0.07109284]
[1771134571271,0.07108669,70337.0,70327.0,0.0710956]
[1771134571468,0.07108669,70337.0,70326.0,0.28458882]
[1771134571469,0.00975236,70338.0,70326.0,0.0002]
[1771134571651,0.00048693,70340.0,70327.0,0.23787239]
[1771134571986,0.00048693,70340.0,70337.0,0.07108559]
[1771134572336,0.00048693,70340.0,70336.0,0.07108706]
[1771134574184,0.00048693,70340.0,70337.0,0.07108614]
[1771134574399,0.07112706,70347.0,70340.0,0.07108286]
[1771134574601,0.07122556,70347.0,70340.0,0.07108286]
[1771134574809,0.07122556,70347.0,70341.0,0.07108223]
[1771134574958,0.07122556,70347.0,70340.0,0.07108286]
[1771134575169,5e-05,70346.0,70340.0,0.07108286]
[1771134577222,5e-05,70346.0,70344.0,0.13]
[1771134578808,0.00045,70346.0,70344.0,0.13]
[1771134580402,0.00012,70350.0,70344.0,0.13]
[1771134580639,0.00012,70350.0,70345.0,0.07107825]
[1771134580825,0.00012,70350.0,70346.0,0.07107708]
[1771134581548,0.00012,70350.0,70345.0,0.07107825]
[1771134581976,0.00012,70350.0,70344.0,0.13]
[1771134582125,0.07107421,70349.0,70344.0,0.13]
[1771134582459,0.07107522,70348.0,70344.0,0.13]
[1771134582692,0.07107421,70349.0,70344.0,0.13]
[1771134582880,0.07107538,70348.0,70344.0,0.13]
[1771134584882,0.07107432,70349.0,70344.0,0.13]
[1771134587297,0.00987236,70350.0,70344.0,0.13]
[1771134587496,0.00012,70350.0,70349.0,0.07107421]
[1771134587700,5e-05,70353.0,70350.0,0.0710728]
[1771134588117,0.00052,70360.0,70355.0,0.07106815]
[1771134588460,0.00052,70360.0,70356.0,0.07106654]
[1771134589296,0.0004,70357.0,70356.0,0.07106654]
[1771134590070,0.0004,70357.0,70355.0,0.07106815]
[1771134590071,0.00052,70360.0,70357.0,0.0710661]
[1771134590708,0.00052,70360.0,70356.0,0.07106681]
[1771134592147,0.07145933,70364.0,70350.0,0.23787239]
[1771134592148,0.0004,70364.0,70361.0,0.07106187]
[1771134593678,0.0004,70364.0,70357.0,0.07106553]
[1771134593989,0.0004,70364.0,70351.0,0.40218763]
[1771134594191,0.0004,70364.0,70361.0,0.07106195]
[1771134594488,0.0004,70364.0,70360.0,0.07106116]
[1771134594684,0.0004,70364.0,70361.0,0.07106134]
[1771134595253,0.0004,70394.0,70340.0,0.00032]
[1771134595457,0.00083308,70374.0,70372.0,0.0710508]
[1771134595657,1e-08,70374.0,70373.0,0.07104997]
[1771134595860,0.00012,70380.0,70379.0,0.07104391]
[1771134596064,0.00024987,70380.0,70379.0,0.07104391]
[1771134596292,0.00024987,70380.0,70368.0,0.1179029]
[1771134596457,0.07104572,70378.0,70364.0,0.34036]
[1771134596664,0.00024987,70380.0,70372.0,0.07105083]
[1771134596926,0.07104403,70379.0,70372.0,0.07105083]
[1771134597047,0.07144403,70379.0,70372.0,0.07105083]
[1771134597248,0.07144403,70379.0,70368.0,0.28421724]
[1771134597249,0.07144403,70379.0,70371.0,0.07105001]
[1771134597457,0.07144403,70379.0,70364.0,0.4582629]
[1771134597458,0.0006305,70379.0,70376.0,0.07104614]
[1771134597675,0.0006305,70379.0,70366.0,0.07105704]
[1771134597902,0.0006305,70379.0,70376.0,0.07104594]
[1771134599375,0.0006305,70379.0,70367.0,0.40212415]
[1771134599585,0.0006305,70379.0,70376.0,0.07104651]
[1771134600047,0.0006305,70379.0,70377.0,0.07104572]
[1771134600607,0.0006305,70379.0,70374.0,0.07104835]
[1771134600891,0.0006305,70379.0,70375.0,0.07104781]
[1771134601087,0.0802076,70379.0,70375.0,0.07104781]
[1771134601287,0.0802076,70379.0,70375.0,0.07104795]
[1771134602500,0.0802076,70379.0,70376.0,0.07104678]
[1771134603031,0.0802076,70379.0,70375.0,0.07104759]
[1771134603571,0.0802076,70379.0,70376.0,0.07104677]
[1771134603768,0.0802076,70379.0,70375.0,0.07104758]
[1771134604382,0.0802076,70379.0,70374.0,0.1252116]
[1771134604989,0.0802076,70379.0,70378.0,0.07104492]
[1771134605167,1e-08,70380.0,70378.0,0.07104492]
[1771134605437,0.0004,70381.0,70379.0,0.07104391]
[1771134605608,0.0004,70381.0,70380.0,0.0710429]
[1771134607194,0.0004,70381.0,70374.0,0.1252116]
[1771134607195,0.0795771,70380.0,70374.0,0.1252116]
[1771134607605,0.0795771,70380.0,70375.0,0.07104729]
[1771134608236,0.0795771,70380.0,70376.0,0.07104654]
[1771134608452,0.0795771,70380.0,70376.0,0.07104607]
[1771134608660,0.07104391,70379.0,70360.0,0.09112]
[1771134608985,0.0795771,70371.0,70367.0,0.07105569]
[1771134609140,0.07105741,70366.0,70360.0,0.00055308]
[1771134609346,6e-05,70376.0,70359.0,0.07106404]
[1771134609347,0.12184396,70367.0,70359.0,0.07106404]
[1771134609675,0.0795771,70366.0,70360.0,0.07106306]
[1771134610241,0.0795771,70366.0,70359.0,0.07106361]
[1771134610443,0.28433532,70370.0,70356.0,0.23807239]
[1771134610444,0.00012,70370.0,70356.0,0.23807239]
[1771134610675,0.00012,70370.0,70369.0,0.07105401]
[1771134610869,0.00012,70370.0,70368.0,0.071055]
[1771134611277,0.00012,70370.0,70369.0,0.07105401]
[1771134611497,0.00012,70370.0,70368.0,0.07105474]
[1771134612040,0.00012,70370.0,70366.0,0.07105673]
[1771134613014,0.00012,70370.0,70360.0,0.69613529]
[1771134613176,0.00012,70370.0,70364.0,0.07105817]
[1771134613373,0.00012,70370.0,70365.0,0.07105779]
[1771134614924,0.00012,70370.0,70367.0,0.07105566]
[1771134615282,0.00012,70370.0,70368.0,0.07105432]
[1771134615485,0.00012,70370.0,70363.0,0.07105998]
[1771134615725,0.00012,70370.0,70364.0,0.07105828]
[1771134617161,0.00012,70370.0,70365.0,0.0002]
[1771134617359,0.0796971,70370.0,70365.0,0.0002]
[1771134617585,0.07927035,70370.0,70365.0,0.0002]
[1771134617787,0.15032338,70370.0,70365.0,0.0002]
[1771134618149,0.07942372,70369.0,70365.0,0.0002]
[1771134620039,0.07926055,70369.0,70365.0,0.0002]
[1771134621391,0.07106209,70361.0,70360.0,0.00012]
[1771134621568,7.63e-05,70360.0,70356.0,0.0716997]
[1771134621778,7.63e-05,70360.0,70356.0,0.00063274]
[1771134622150,7.63e-05,70360.0,70358.0,0.08]
[1771134622874,0.07106411,70359.0,70356.0,0.00063274]
[1771134623149,0.07934214,70359.0,70356.0,0.00063274]
[1771134624205,0.15040449,70361.0,70356.0,0.00063274]
[1771134624626,0.0710631,70360.0,70356.0,0.00063274]
[1771134624963,7.63e-05,70359.0,70356.0,0.00063274]
[1771134625093,0.07917896,70358.0,70356.0,0.00063274]
[1771134625288,0.07917896,70358.0,70350.0,0.00032]
[1771134625496,0.07926055,70358.0,70354.0,0.07106847]
[1771134625910,7.63e-05,70359.0,70353.0,0.07106847]
[1771134626131,0.00012,70370.0,70350.0,0.00044987]
[1771134626340,0.07105855,70365.0,70358.0,0.07106454]
[1771134626841,0.07105923,70364.0,70358.0,0.07106454]
[1771134627047,0.07105923,70364.0,70351.0,0.11754018]
[1771134627277,0.07106525,70358.0,70352.0,0.07107101]
[1771134627630,0.07106525,70358.0,70350.0,0.00044987]
[1771134627631,0.07106525,70358.0,70351.0,0.07107187]
[1771134628040,0.07106525,70358.0,70352.0,0.07107089]
[1771134628591,0.07106412,70359.0,70353.0,0.07106996]
[1771134628951,0.07106311,70360.0,70354.0,0.07106894]
[1771134629115,0.07106287,70361.0,70354.0,0.07106894]
[1771134629833,0.07926055,70362.0,70352.0,0.07107089]
[1771134630043,0.15032264,70362.0,70352.0,0.07107089]
[1771134630236,0.07106411,70359.0,70352.0,0.07107115]
[1771134630777,0.07106411,70359.0,70353.0,0.07126973]
[1771134631713,0.07106402,70360.0,70353.0,0.07126973]
[1771134631923,0.15032457,70360.0,70354.0,0.07106878]
[1771134633865,0.07926055,70360.0,70355.0,0.07106811]
[1771134634021,0.070902,70358.0,70353.0,0.0002]
[1771134634538,0.0710659,70359.0,70353.0,0.07126934]
[1771134634737,0.07106383,70360.0,70354.0,0.07106901]
[1771134635052,0.07926055,70359.0,70353.0,0.0002]
[1771134635391,0.07926055,70359.0,70354.0,0.07106842]
[1771134635615,0.07926055,70359.0,70356.0,0.07106621]
[1771134636107,0.07106151,70362.0,70356.0,0.07106709]
[1771134636319,0.07106247,70361.0,70355.0,0.07106804]
[1771134637349,0.07106331,70360.0,70354.0,0.07106888]
[1771134639057,0.07090014,70360.0,70354.0,0.07106888]
[1771134639461,0.15032206,70362.0,70355.0,0.07106804]
[1771134639462,0.0710623,70361.0,70355.0,0.07106804]
[1771134640026,0.0710623,70361.0,70357.0,0.0002]
[1771134641113,0.15032285,70361.0,70357.0,0.0002]
[1771134642447,0.07926055,70360.0,70357.0,0.0002]
[1771134643144,0.28423398,70365.0,70357.0,0.0002]
[1771134643346,6e-05,70366.0,70359.0,0.07106387]
[1771134643823,0.0710593,70364.0,70358.0,0.07106487]
[1771134643982,0.07105891,70366.0,70358.0,0.07106487]
[1771134644180,0.07105842,70365.0,70358.0,0.07106487]
[1771134644815,0.07105842,70365.0,70359.0,0.07106408]
[1771134648862,0.07145842,70365.0,70359.0,0.07106408]
[1771134649698,0.07966055,70365.0,70357.0,0.0002]
[1771134649893,0.07105906,70364.0,70358.0,0.07106455]
[1771134651406,0.15031961,70364.0,70358.0,0.07106455]
[1771134654652,0.07106035,70363.0,70357.0,0.0712657]
[1771134654885,0.1503209,70363.0,70357.0,0.0712657]
[1771134655780,0.07926055,70360.0,70357.0,0.0002]
[1771134655935,0.07926055,70359.0,70357.0,0.0002]
[1771134657392,0.07926055,70359.0,70353.0,0.0002]
[1771134657545,0.15032971,70354.0,70353.0,0.0002]
[1771134657746,0.07926055,70354.0,70353.0,0.0002]
[1771134661258,0.1503281,70356.0,70353.0,0.0002]
[1771134661490,0.07106755,70356.0,70353.0,0.0002]
[1771134661695,0.07926055,70355.0,70353.0,0.0002]
[1771134663616,0.15032906,70355.0,70353.0,0.0002]
[1771134664023,0.07926055,70355.0,70353.0,0.0002]
[1771134664551,0.07926055,70355.0,70350.0,0.07120277]
[1771134664760,0.07926055,70355.0,70350.0,0.07107243]
[1771134664970,0.07926055,70355.0,70351.0,0.07107157]
[1771134665112,0.07926055,70355.0,70350.0,0.07107243]
[1771134666597,0.07926055,70355.0,70351.0,0.0710719]
[1771134666793,0.07926055,70355.0,70353.0,0.0002]
[1771134667691,0.07926055,70355.0,70350.0,0.07107288]
[1771134667924,0.07107421,70350.0,70345.0,0.0002]
[1771134668054,0.07107319,70351.0,70345.0,0.07127801]
[1771134668258,0.15033374,70351.0,70345.0,0.07127801]
[1771134668459,0.07926055,70350.0,70345.0,0.07127801]
[1771134668938,0.07926055,70350.0,70346.0,0.07107721]
[1771134670755,0.07926055,70350.0,70349.0,0.07107421]
[1771134671492,0.07926055,70350.0,70345.0,0.07127779]
[1771134671904,0.07926055,70350.0,70347.0,0.07107587]
[1771134672713,0.07926055,70350.0,70345.0,0.07127808]
[1771134673523,0.07926055,70350.0,70346.0,0.07107664]
[1771134674667,0.07926055,70350.0,70346.0,0.07127664]
[1771134675069,0.07926055,70350.0,70346.0,0.0002]
[1771134675221,0.07107483,70349.0,70346.0,0.0002]
[1771134675422,0.07926055,70350.0,70346.0,0.0002]
[1771134678194,0.07926055,70359.0,70346.0,0.0002]
[1771134678511,0.00012,70360.0,70358.0,0.07106441]
[1771134678656,0.00012,70360.0,70357.0,0.07106581]
[1771134678860,0.00012,70360.0,70358.0,0.07106496]
[1771134679178,0.0004,70363.0,70357.0,0.07106592]
[1771134679591,0.0004,70363.0,70358.0,0.07106425]
[1771134679767,0.0004,70363.0,70356.0,0.07106651]
[1771134679971,0.07146038,70363.0,70355.0,0.07106644]
[1771134680813,0.07146038,70363.0,70357.0,0.07106602]
[1771134681246,0.0004,70363.0,70360.0,0.07106298]
[1771134681465,0.0004,70365.0,70361.0,0.07106201]
[1771134681596,0.0002815,70370.0,70368.0,0.07105502]
[1771134681987,0.0004,70373.0,70368.0,0.07105502]
[1771134682186,0.0714466,70377.0,70360.0,0.11254126]
[1771134682187,0.0004,70377.0,70372.0,0.07105065]
[1771134682399,0.0004,70377.0,70372.0,0.07148347]
[1771134682599,0.0004,70377.0,70372.0,0.00043282]
[1771134683053,0.0004,70377.0,70372.0,0.0714831]
[1771134683224,0.0004,70377.0,70372.0,0.00043282]
[1771134684228,0.0004,70377.0,70376.0,0.07104694]
[1771134685092,0.0004,70377.0,70375.0,0.07104781]
[1771134686285,0.0004,70381.0,70378.0,0.07104473]
[1771134686776,0.0004,70381.0,70379.0,0.07104317]
[1771134686991,0.0004,70381.0,70372.0,0.00043282]
[1771134687264,0.0004,70381.0,70376.0,0.07104658]
[1771134687838,0.07966055,70381.0,70376.0,0.07089822]
[1771134688221,0.0004,70381.0,70377.0,0.07104562]
[1771134688423,0.0004,70381.0,70379.0,0.07104366]
[1771134688829,0.0004,70381.0,70377.0,0.07104552]
[1771134688830,0.0004,70381.0,70378.0,0.07104469]
[1771134689240,0.0004,70381.0,70379.0,0.07089545]
[1771134689502,0.0004,70381.0,70377.0,0.07104525]
[1771134689705,0.0004,70381.0,70379.0,0.07104341]
[1771134689912,0.0004,70381.0,70378.0,0.07104453]
[1771134690853,0.0004,70381.0,70379.0,0.07104391]
[1771134691691,0.0004,70381.0,70380.0,0.0710429]
[1771134691928,0.0004,70381.0,70379.0,0.07104391]
[1771134693892,0.0004,70381.0,70380.0,0.0710429]
[1771134694411,0.0004,70381.0,70373.0,0.11254126]
[1771134694412,0.0004,70381.0,70378.0,0.07104479]
[1771134694610,0.0004,70381.0,70377.0,0.07104556]
[1771134696025,0.0004,70381.0,70378.0,0.07104474]
[1771134696357,0.07143896,70384.0,70376.0,0.07104643]
[1771134696565,0.0004,70384.0,70376.0,0.07104643]
[1771134697063,0.07104089,70382.0,70372.0,0.00043282]
[1771134697244,0.06555796,70381.0,70373.0,0.07104976]
[1771134697406,0.05734337,70377.0,70372.0,0.00043282]
[1771134697614,0.1434588,70374.0,70361.0,0.34036]
[1771134697882,0.07105017,70373.0,70364.0,0.07105831]
[1771134698208,0.07240925,70373.0,70362.0,0.07106105]
[1771134698416,0.00012,70380.0,70361.0,0.34036]
[1771134698614,0.00012,70380.0,70373.0,0.07104925]
[1771134699579,0.00012,70380.0,70372.0,0.07105085]
[1771134699784,0.00012,70380.0,70373.0,0.00030577]
[1771134700099,0.00012,70380.0,70372.0,0.07105085]
[1771134703032,0.00012,70380.0,70370.0,0.07105267]
[1771134703165,0.07104407,70379.0,70370.0,0.07105267]
[1771134703361,0.00012,70380.0,70371.0,0.07105179]
[1771134703661,0.07116318,70380.0,70371.0,0.07105179]
[1771134703866,0.00012,70380.0,70372.0,0.07105098]
[1771134704065,0.00012,70380.0,70371.0,0.07105163]
[1771134704271,0.14397241,70380.0,70370.0,0.07105267]
[1771134704983,0.07240925,70379.0,70371.0,0.07105192]
[1771134705484,0.07240925,70379.0,70362.0,0.38714473]
[1771134705678,0.07240925,70379.0,70373.0,0.07104987]
[1771134706079,0.07240925,70379.0,70372.0,0.07105068]
[1771134706483,0.07240925,70379.0,70363.0,0.07106007]
[1771134706484,0.07240925,70379.0,70371.0,0.07105156]
[1771134708132,0.07240925,70379.0,70373.0,0.07104958]
[1771134708312,0.07240925,70379.0,70372.0,0.07105061]
[1771134708717,0.07240925,70379.0,70373.0,0.07104987]
[1771134708906,0.07240925,70379.0,70373.0,0.07104991]
[1771134709328,0.0004,70384.0,70374.0,0.07104832]
[1771134709858,0.0004,70384.0,70375.0,0.07104751]
[1771134710038,0.0004,70389.0,70370.0,0.00012]
[1771134710241,0.03660463,70395.0,70380.0,0.23779368]
[1771134710440,0.03660463,70395.0,70388.0,0.07103398]
[1771134710642,0.03660463,70395.0,70387.0,0.07103578]
[1771134710808,0.03660463,70395.0,70386.0,0.07103505]
[1771134711027,0.03660463,70395.0,70384.0,0.07103811]
[1771134711245,0.03660463,70395.0,70385.0,0.07103703]
[1771134711450,0.03660463,70395.0,70386.0,0.07103671]
[1771134711676,0.03673446,70395.0,70386.0,0.07103671]
[1771134712278,0.0004,70392.0,70386.0,0.07103671]
[1771134712783,0.0004,70392.0,70385.0,0.07103602]
[1771134712985,0.0004,70392.0,70387.0,0.07103515]
[1771134713348,0.0004,70392.0,70388.0,0.07103472]
[1771134713816,0.0004,70392.0,70390.0,0.07103244]
[1771134713943,0.0004,70392.0,70389.0,0.07103374]
[1771134714360,0.0004,70392.0,70388.0,0.07103293]
[1771134714584,0.0004,70392.0,70390.0,0.07103276]
[1771134714790,0.03673446,70395.0,70380.0,0.23779368]
[1771134714791,0.0051459,70395.0,70380.0,0.23779368]
[1771134714990,0.00012983,70395.0,70392.0,0.07102985]
[1771134715280,0.00012983,70395.0,70393.0,0.07102946]
[1771134715483,0.02538221,70399.0,70398.0,0.07102474]
[1771134715684,0.0004,70399.0,70398.0,0.07102474]
[1771134716283,0.0004,70399.0,70397.0,0.07102547]
[1771134716709,0.00027211,70399.0,70397.0,0.07102547]
[1771134716909,0.00027211,70399.0,70394.0,0.071028]
[1771134717115,0.00027211,70399.0,70395.0,0.07102748]
[1771134717318,0.00027211,70399.0,70395.0,0.07102684]
[1771134718457,0.00027211,70399.0,70396.0,0.07102619]
[1771134719231,0.00027211,70399.0,70394.0,0.07102856]
[1771134719433,0.00027211,70399.0,70395.0,0.07102722]
[1771134719839,0.00027211,70399.0,70396.0,0.07102594]
[1771134720705,0.00027211,70399.0,70389.0,0.53058427]
[1771134720909,0.00027211,70399.0,70384.0,0.38705823]
[1771134720910,0.00027211,70399.0,70385.0,0.0087793]
[1771134721207,0.00027211,70399.0,70393.0,0.07102948]
[1771134721408,0.00027211,70399.0,70395.0,0.0710276]
[1771134721864,0.00027211,70399.0,70395.0,0.07102723]
[1771134722090,0.02498221,70399.0,70390.0,0.07103193]
[1771134722259,0.0741428,70400.0,70381.0,0.07104103]
[1771134722260,0.02498221,70390.0,70381.0,0.07104103]
[1771134722461,0.02498221,70390.0,70380.0,0.42433728]
[1771134722462,0.02498221,70389.0,70380.0,0.00012]
[1771134722662,0.02498221,70388.0,70381.0,0.07104176]
[1771134724031,0.02498221,70388.0,70382.0,0.07104067]
[1771134724686,0.04595071,70387.0,70382.0,0.07104067]
[1771134725011,0.02498221,70386.0,70382.0,0.07104067]
[1771134725213,0.02498221,70386.0,70380.0,0.07116111]
[1771134725214,0.02498221,70386.0,70381.0,0.07104183]
[1771134725560,0.02498221,70386.0,70382.0,0.07104037]
[1771134726053,0.02498221,70386.0,70382.0,0.07089199]
[1771134727797,0.02498221,70386.0,70383.0,0.0710397]
[1771134728380,0.04595071,70385.0,70382.0,0.07104069]
[1771134729340,0.04595071,70385.0,70383.0,0.07103988]
[1771134729539,0.04595071,70385.0,70384.0,0.07103887]
[1771134729758,0.04595071,70385.0,70382.0,0.07104069]
[1771134729956,0.04595071,70385.0,70381.0,0.07124151]
[1771134730505,0.04595071,70385.0,70382.0,0.07104053]
[1771134731142,0.04595071,70385.0,70384.0,0.07103887]
[1771134731549,0.04595071,70385.0,70374.0,0.62447471]
[1771134731550,0.07104005,70383.0,70373.0,0.0002]
[1771134731840,0.02498221,70382.0,70376.0,0.07104677]
[1771134732466,0.02498221,70382.0,70377.0,0.07104559]
[1771134732638,0.02498221,70382.0,70373.0,0.0002]
[1771134732840,0.02498221,70382.0,70379.0,0.0710433]
[1771134734240,0.02498221,70382.0,70378.0,0.07104485]
[1771134734820,0.06944878,70381.0,70378.0,0.07104485]
[1771134734938,0.06944878,70381.0,70379.0,0.07104384]
[1771134736297,0.02349807,70380.0,70378.0,0.07104479]
[1771134737494,0.02349807,70380.0,70379.0,0.07104391]
[1771134738219,0.02349807,70380.0,70374.0,0.07104891]
[1771134738367,0.02349807,70380.0,70376.0,0.07104689]
[1771134739423,0.02349807,70380.0,70375.0,0.07104767]
[1771134739825,0.06944878,70379.0,70375.0,0.07104767]
[1771134740029,0.06944878,70379.0,70376.0,0.07104661]
[1771134740779,0.06944878,70379.0,70373.0,0.0002]
[1771134740981,0.06944878,70379.0,70376.0,0.07104661]
[1771134741583,0.04595071,70379.0,70375.0,0.07104704]
[1771134741831,0.06944878,70379.0,70375.0,0.07104704]
[1771134742027,0.06944878,70379.0,70376.0,0.0710469]
[1771134742758,0.05070033,70379.0,70377.0,0.07104534]
[1771134742913,0.02389807,70386.0,70378.0,0.07104492]
[1771134743115,0.09493552,70386.0,70378.0,0.07104492]
[1771134743538,0.07103786,70385.0,70378.0,0.07104492]
[1771134743741,0.02389807,70386.0,70377.0,0.07104577]
[1771134743938,0.00024978,70390.0,70377.0,0.10911064]
[1771134744118,0.00024978,70390.0,70385.0,0.07103716]
[1771134744339,0.00024978,70390.0,70377.0,0.10911064]
[1771134744340,0.00312,70400.0,70380.0,0.2377058]
[1771134744537,0.02349807,70395.0,70380.0,0.02348864]
[1771134744736,0.13249329,70394.0,70387.0,0.07103523]
[1771134744939,0.02349807,70394.0,70389.0,0.07103378]
[1771134745371,0.02349807,70394.0,70388.0,0.07103468]
[1771134745566,0.02349807,70394.0,70389.0,0.07103348]
[1771134745939,0.07102579,70397.0,70389.0,0.07103348]
[1771134746162,0.07102691,70396.0,70388.0,0.07103468]
[1771134746358,0.13249329,70398.0,70387.0,0.07103386]
[1771134746903,0.2407058,70400.0,70384.0,0.07103882]
[1771134746904,0.0710314,70392.0,70384.0,0.07103882]
[1771134747206,0.02349807,70391.0,70384.0,0.07103882]
[1771134747527,0.09453009,70391.0,70382.0,0.07104089]
[1771134747728,0.10899522,70388.0,70380.0,0.00024978]
[1771134748023,0.07103748,70386.0,70380.0,0.00024978]
[1771134748226,0.09390623,70387.0,70380.0,0.00024978]
[1771134748481,0.02349807,70386.0,70382.0,0.0002]
[1771134752812,0.09453505,70386.0,70382.0,0.0002]
[1771134753015,0.02349807,70386.0,70382.0,0.0002]
[1771134753416,0.07103886,70385.0,70382.0,0.0002]
[1771134754277,0.09453693,70385.0,70382.0,0.0002]
[1771134754420,0.02349807,70385.0,70382.0,0.0002]
[1771134755063,0.09453644,70385.0,70382.0,0.0002]
[1771134755518,0.07103887,70384.0,70382.0,0.0002]
[1771134757504,0.07103887,70384.0,70374.0,0.0002]
[1771134757698,0.09453874,70383.0,70376.0,0.07104618]
[1771134758102,0.02349807,70383.0,70377.0,0.07104568]
[1771134758304,0.07103887,70384.0,70377.0,0.07104568]
[1771134758808,0.07104005,70383.0,70377.0,0.07104568]
[1771134759442,0.07104005,70383.0,70375.0,0.07124733]
[1771134759563,0.07104005,70383.0,70376.0,0.07104601]
[1771134759963,0.07103786,70385.0,70378.0,0.07104488]
[1771134760674,0.07103916,70384.0,70378.0,0.07104488]
[1771134763151,0.07103916,70384.0,70377.0,0.07104556]
[1771134764772,0.07103916,70384.0,70377.0,0.06255856]
[1771134764959,0.07103916,70384.0,70378.0,0.0002]
[1771134765159,0.07143916,70384.0,70378.0,0.0002]
[1771134765832,0.07143916,70384.0,70378.0,0.07124485]
[1771134768421,0.07137163,70384.0,70378.0,0.07124485]
[1771134768647,0.07104001,70383.0,70378.0,0.0002]
[1771134768798,0.07103988,70383.0,70378.0,0.0002]
[1771134769965,0.07144067,70384.0,70378.0,0.07124477]
[1771134771405,0.0004,70384.0,70378.0,0.0002]
[1771134772028,0.07143969,70384.0,70378.0,0.07124489]
[1771134772231,0.07143969,70384.0,70378.0,0.07148689]
[1771134772652,0.07104023,70383.0,70378.0,0.000442]
[1771134772911,0.0004,70384.0,70378.0,0.000442]
[1771134773184,0.07104469,70379.0,70375.0,0.0002]
[1771134773846,0.07104557,70378.0,70375.0,0.0002]
[1771134774044,0.10976445,70383.0,70374.0,0.26298232]
[1771134774251,0.02425832,70384.0,70370.0,0.07985296]
[1771134774252,0.02377332,70376.0,70370.0,0.07985296]
[1771134774452,0.09482439,70372.0,70366.0,0.0002]
[1771134774684,0.07105215,70371.0,70366.0,0.0002]
[1771134774877,0.09482439,70372.0,70366.0,0.0002]
[1771134775082,0.07105199,70371.0,70366.0,0.0002]
[1771134775285,0.02377332,70372.0,70366.0,0.0002]
[1771134775472,0.07105199,70371.0,70366.0,0.0002]
[1771134775682,0.07106209,70361.0,70360.0,0.00032]
[1771134775888,0.07106336,70360.0,70357.0,0.0001284]
[1771134776141,0.07106427,70359.0,70357.0,0.0002452]
[1771134776282,0.07106512,70358.0,70357.0,0.0002452]
[1771134776487,0.02377332,70358.0,70357.0,0.0002452]
[1771134776706,0.07106169,70362.0,70357.0,0.0002452]
[1771134776904,0.02377332,70361.0,70357.0,0.0002452]
[1771134777328,0.2842345,70365.0,70357.0,0.0001168]
[1771134777329,0.07106007,70363.0,70357.0,0.0001168]
[1771134777525,0.07106278,70361.0,70357.0,0.0001168]
[1771134778445,0.07106316,70360.0,70357.0,0.0001168]
[1771134779014,0.28433334,70370.0,70357.0,0.0001168]
[1771134779215,0.07105469,70369.0,70361.0,0.10474267]
[1771134779542,0.00012,70370.0,70363.0,0.02339941]
[1771134779933,0.07105575,70368.0,70363.0,0.02339941]
[1771134780106,0.30806752,70380.0,70368.0,0.07090616]
[1771134780307,0.30806752,70380.0,70360.0,0.2377058]
[1771134780308,0.07104896,70374.0,70360.0,0.26110521]
[1771134780586,0.2377058,70380.0,70360.0,0.00012]
[1771134780587,0.07105882,70365.0,70360.0,0.00012]
[1771134780867,0.07105858,70365.0,70363.0,0.0002]
[1771134781395,0.07105805,70365.0,70363.0,0.0002]
[1771134781724,0.07105906,70364.0,70363.0,0.0002]
[1771134782376,0.02377332,70366.0,70357.0,0.0001168]
[1771134782686,0.07106384,70360.0,70357.0,0.0001168]
[1771134783089,0.07106512,70358.0,70355.0,0.0002]
[1771134783488,0.02377332,70360.0,70355.0,0.07126809]
[1771134783691,0.07106527,70358.0,70355.0,0.0002]
[1771134783986,0.02377332,70360.0,70355.0,0.0002]
[1771134784188,0.07106209,70361.0,70355.0,0.0002]
[1771134785463,0.07106209,70361.0,70355.0,0.0712674]
[1771134786090,0.07106209,70361.0,70355.0,0.0002]
[1771134786524,0.07106381,70360.0,70355.0,0.0002]
[1771134787803,0.07106417,70359.0,70355.0,0.0002]
[1771134788049,0.07106535,70358.0,70355.0,0.0002]
[1771134789373,0.07106139,70362.0,70355.0,0.0002]
[1771134790200,0.07106289,70361.0,70355.0,0.07126803]
[1771134792002,0.07106139,70362.0,70356.0,0.07106645]
[1771134792201,0.07106139,70362.0,70355.0,0.0002]
[1771134792547,0.07106139,70362.0,70356.0,0.07106714]
[1771134793256,0.07106217,70361.0,70355.0,0.07126622]
[1771134793467,0.07149499,70361.0,70355.0,0.07126622]
[1771134794761,0.07189499,70361.0,70355.0,0.07126622]
[1771134797196,0.00083282,70361.0,70356.0,0.07106712]
[1771134797897,0.07189493,70361.0,70356.0,0.07106712]
[1771134798483,0.00083282,70361.0,70356.0,0.07106712]
[1771134798900,0.00083282,70361.0,70357.0,0.07106523]
[1771134799118,0.00083282,70361.0,70355.0,0.0002]
[1771134799119,0.0004,70369.0,70360.0,0.14990882]
[1771134799439,0.07106019,70363.0,70360.0,0.14990882]
[1771134799619,0.0005297,70369.0,70360.0,0.14990882]
[1771134799773,0.07105502,70368.0,70361.0,0.07106199]
[1771134800134,0.0005297,70369.0,70360.0,0.14990882]
[1771134800278,0.07105851,70365.0,70360.0,0.14990882]
[1771134800478,0.07105976,70364.0,70359.0,0.07106407]
[1771134800714,0.07105846,70365.0,70360.0,0.07106307]
[1771134800891,0.07105846,70365.0,70359.0,0.07106365]
[1771134801277,0.07105718,70366.0,70360.0,0.07106294]
[1771134801478,0.0004,70361.0,70360.0,0.07106294]
[1771134801691,0.0004,70361.0,70360.0,0.22097176]
[1771134801896,0.0004,70361.0,70360.0,0.14990882]
[1771134802538,0.0004,70361.0,70360.0,0.22097192]
[1771134805523,0.0004,70361.0,70360.0,0.14990882]
[1771134808448,0.0004,70361.0,70360.0,0.15010882]
[1771134808632,0.0004,70361.0,70360.0,0.0002]
[1771134812396,0.07146209,70361.0,70360.0,0.0002]
[1771134812845,0.071066,70358.0,70355.0,0.15010882]
[1771134813044,0.07106456,70359.0,70355.0,0.0002]
[1771134813454,0.0710634,70360.0,70355.0,0.0002]
[1771134814063,0.0710634,70360.0,70355.0,0.15010882]
[1771134814475,0.0004,70361.0,70356.0,0.07106672]
[1771134814673,0.0004,70361.0,70356.0,0.22097554]
[1771134814897,0.07146213,70361.0,70357.0,0.14990882]
[1771134815012,0.07106324,70360.0,70357.0,0.14990882]
[1771134815213,0.07106324,70360.0,70355.0,0.07126797]
[1771134815420,0.07106324,70360.0,70355.0,0.22117679]
[1771134815620,0.07106324,70360.0,70355.0,0.0002]